[Event "CRO-ch Youth U17 2020"]
[Site "Vinkovci"]
[Date "2020.08.04"]
[Round "9.7"]
[White "Randic, Petra"]
[Black "Juric, Ester"]
[Result "1/2-1/2"]
[ECO "D27"]
[WhiteElo "1794"]
[BlackElo "1663"]
[Annotator "NA"]
[PlyCount "24"]
[EventDate "2020.07.28"]
[EventType "swiss"]
[EventCountry "CRO"]
[SourceTitle "playchess.com"]
[Source "ChessBase"]
[SourceQuality "1"]
[TimeControl "5400+30"]

1. d4 {[%emt 0:00:30]} d5 {[%emt 0:00:30]} 2. c4 {[%emt 0:00:00]} dxc4 {[%emt 0:00:00]} 3. Nc3 {[%emt 0:02:00]} Nf6 {[%emt 0:01:00]} 4. e3 {[%emt 0:01:30]} e6 {[%emt 0:00:30]} 5. Bxc4 {[%emt 0:01:30]} c5 {[%emt 0:00:30]} 6. Nf3 {[%emt 0:01:30]} a6 {[%emt 0:00:30]} 7. a4 {[%emt 0:02:30]} Nc6 {[%emt 0:01:30]} 8. O-O {[%emt 0:02:30]} cxd4 {[%emt 0:03:30]} 9. Nxd4 {[%emt 0:01:30]} Nxd4 {[%emt 0:00:00]} 10. exd4 {[%emt 0:02:30]} Be7 {[%emt 0:01:00]} 11. d5 {[%emt 0:05:30]} exd5 {[%emt 0:00:30]} 12. Nxd5 {[%emt 0:03:30]} Nxd5 {[%emt 0:00:30]} 1/2-1/2

[Event "CRO-ch Youth U17 2020"]
[Site "Vinkovci"]
[Date "2020.08.04"]
[Round "9.8"]
[White "Bevanda, Ema"]
[Black "Raguz, Sima"]
[Result "1-0"]
[ECO "D00"]
[WhiteElo "1554"]
[BlackElo "1128"]
[Annotator "NA"]
[PlyCount "37"]
[EventDate "2020.07.28"]
[EventType "swiss"]
[EventCountry "CRO"]
[SourceTitle "playchess.com"]
[Source "ChessBase"]
[SourceQuality "1"]
[TimeControl "5400+30"]

1. d4 {[%emt 0:00:30]} d5 {[%emt 0:00:30]} 2. Bf4 {[%emt 0:00:00]} c5 {[%emt 0:00:30]} 3. e3 {[%emt 0:00:00]} Nc6 {[%emt 0:00:30]} 4. c3 {[%emt 0:00:30]} Bf5 {[%emt 0:00:30]} 5. Nf3 {[%emt 0:01:30]} e6 {[%emt 0:00:30]} 6. Bd3 {[%emt 0:02:30]} Bxd3 {[%emt 0:00:30]} 7. Qxd3 {[%emt 0:01:30]} Nf6 {[%emt 0:01:30]} 8. h3 {[%emt 0:00:30]} Be7 {[%emt 0:00:30]} 9. Nbd2 {[%emt 0:01:30]} cxd4 {[%emt 0:00:30]} 10. exd4 {[%emt 0:00:30]} O-O {[%emt 0:00:00]} 11. O-O {[%emt 0:00:30]} Nh5 {[%emt 0:02:00]} 12. Bh2 {[%emt 0:00:00]} Bd6 {[%emt 0:01:30]} 13. Ne5 {[%emt 0:01:00]} Nxe5 {[%emt 0:00:30]} 14. dxe5 {[%emt 0:00:30]} Bc7 {[%emt 0:00:00]} 15. g4 {[%emt 0:03:30]} Qg5 {[%emt 0:00:00]} 16. f4 {[%emt 0:00:00]} Nxf4 {[%emt 0:03:30]} 17. Bxf4 {[%emt 0:00:00]} Qh4 {[%emt 0:00:00]} 18. Kg2 {[%emt 0:05:30]} f6 {[%emt 0:01:00]} 19. Nf3 {[%emt 0:00:00]} 1-0